[Event "Philip Hogarty Memorial IM 2019"]
[Site "Stillorgan"]
[Date "2019.01.06"]
[Round "8"]
[White "Sodoma, Jan"]
[Black "Nilssen, Ellen Fredericia"]
[Result "1-0"]
[ECO "E67"]
[WhiteElo "2324"]
[BlackElo "2181"]
[Annotator "NA"]
[PlyCount "97"]
[EventDate "2019.01.02"]
[EventType "tourn"]
[EventCountry "IRL"]
[SourceTitle "playchess.com"]
[Source "ChessBase"]
[SourceQuality "1"]
[TimeControl "5400+30"]

1. Nf3 {[%emt 0:00:00]} Nf6 {[%emt 0:00:00]} 2. c4 {[%emt 0:00:00]} g6 {[%emt 0:00:51]} 3. b3 {[%emt 0:00:25]} Bg7 {[%emt 0:04:41]} 4. Bb2 {[%emt 0:00:10]} O-O {[%emt 0:03:41]} 5. g3 {[%emt 0:00:15]} d6 {[%emt 0:03:53]} 6. d4 {[%emt 0:00:19]} Nbd7 {[%emt 0:01:00]} 7. Bg2 {[%emt 0:00:18]} c6 {[%emt 0:03:11]} 8. O-O {[%emt 0:00:24]} Re8 {[%emt 0:00:12]} 9. Nc3 {[%emt 0:08:09]} e5 {[%emt 0:02:05]} 10. dxe5 {[%emt 0:00:49]} dxe5 {[%emt 0:01:33]} 11. Ng5 {[%emt 0:00:56]} Qc7 {[%emt 0:09:09]} 12. Nge4 {[%emt 0:09:45]} Rd8 {[%emt 0:09:48]} 13. Qd6 {[%emt 0:01:39]} Qxd6 {[%emt 0:00:53]} 14. Nxd6 {[%emt 0:00:08]} Nf8 {[%emt 0:01:11]} 15. Nxc8 {[%emt 0:00:50]} Raxc8 {[%emt 0:02:05]} 16. Bh3 {[%emt 0:00:12]} Ra8 {[%emt 0:15:02]} 17. Rfd1 {[%emt 0:00:21]} h5 {[%emt 0:00:21]} 18. Na4 {[%emt 0:16:27]} N6h7 {[%emt 0:00:47]} 19. Nc5 {[%emt 0:00:32]} Ng5 {[%emt 0:01:04]} 20. Bg2 {[%emt 0:00:10]} Rxd1+ {[%emt 0:00:23]} 21. Rxd1 {[%emt 0:00:08]} Rb8 {[%emt 0:00:15]} 22. Kf1 {[%emt 0:04:54]} f5 {[%emt 0:07:41]} 23. e4 {[%emt 0:03:24]} Nf7 {[%emt 0:06:56]} 24. Ke1 {[%emt 0:02:08]} f4 {[%emt 0:03:07]} 25. h4 {[%emt 0:02:24]} fxg3 {[%emt 0:00:55]} 26. fxg3 {[%emt 0:00:09]} b6 {[%emt 0:00:17]} 27. Na6 {[%emt 0:03:03]} Rd8 {[%emt 0:00:24]} 28. Nb4 {[%emt 0:00:12]} Rxd1+ {[%emt 0:01:55]} 29. Kxd1 {[%emt 0:00:07]} Nd8 {[%emt 0:00:18]} 30. Bh3 {[%emt 0:00:09]} Bf6 {[%emt 0:02:10]} 31. c5 {[%emt 0:01:21]} Kg7 {[%emt 0:05:44]} 32. cxb6 {[%emt 0:01:26]} axb6 {[%emt 0:00:08]} 33. Nd3 {[%emt 0:00:05]} Nf7 {[%emt 0:00:09]} 34. b4 {[%emt 0:01:26]} Kh6 {[%emt 0:00:49]} 35. a4 {[%emt 0:00:24]} g5 {[%emt 0:00:20]} 36. hxg5+ {[%emt 0:00:38]} Kxg5 {[%emt 0:02:21]} 37. a5 {[%emt 0:00:46]} bxa5 {[%emt 0:00:22]} 38. bxa5 {[%emt 0:00:08]} Bd8 {[%emt 0:00:08]} 39. a6 {[%emt 0:00:30]} Bb6 {[%emt 0:00:06]} 40. Nxe5 {[%emt 0:00:30]} Nxe5 {[%emt 0:00:22]} 41. Bxe5 {[%emt 0:00:13]} Ng6 {[%emt 0:00:36]} 42. Bb8 {[%emt 0:00:11]} h4 {[%emt 0:00:30]} 43. gxh4+ {[%emt 0:01:17]} Nxh4 {[%emt 0:00:59]} 44. Ke2 {[%emt 0:00:29]} Ng6 {[%emt 0:00:17]} 45. Bf5 {[%emt 0:00:59]} Ne7 {[%emt 0:00:42]} 46. Bd7 {[%emt 0:01:06]} Kf6 {[%emt 0:01:36]} 47. a7 {[%emt 0:01:02]} Bxa7 {[%emt 0:00:06]} 48. Bxa7 {[%emt 0:00:05]} Ke5 {[%emt 0:00:10]} 49. Kd3 {[%emt 0:00:34]} 1-0

[Event "Philip Hogarty Memorial IM 2019"]
[Site "Stillorgan"]
[Date "2019.01.06"]
[Round "8"]
[White "Brady, Stephen"]
[Black "Wall, Gavin"]
[Result "1-0"]
[ECO "C41"]
[WhiteElo "2314"]
[BlackElo "2330"]
[Annotator "NA"]
[PlyCount "59"]
[EventDate "2019.01.02"]
[EventType "tourn"]
[EventCountry "IRL"]
[SourceTitle "playchess.com"]
[Source "ChessBase"]
[SourceQuality "1"]
[TimeControl "5400+30"]

1. e4 {[%emt 0:07:42]} e5 {[%emt 0:00:00]} 2. Nf3 {[%emt 0:00:04]} d6 {[%emt 0:00:20]} 3. d4 {[%emt 0:00:07]} exd4 {[%emt 0:00:37]} 4. Nxd4 {[%emt 0:00:40]} Nf6 {[%emt 0:00:05]} 5. Nc3 {[%emt 0:00:06]} Be7 {[%emt 0:00:04]} 6. g3 {[%emt 0:00:38]} O-O {[%emt 0:00:20]} 7. Bg2 {[%emt 0:00:06]} Re8 {[%emt 0:00:32]} 8. O-O {[%emt 0:00:11]} c6 {[%emt 0:00:05]} 9. h3 {[%emt 0:06:15]} Bf8 {[%emt 0:01:17]} 10. b3 {[%emt 0:14:40]} a5 {[%emt 0:01:28]} 11. a4 {[%emt 0:01:32]} Na6 {[%emt 0:00:06]} 12. Bb2 {[%emt 0:02:43]} Nb4 {[%emt 0:02:06]} 13. Re1 {[%emt 0:03:19]} d5 {[%emt 0:08:29]} 14. e5 {[%emt 0:04:53]} Bc5 {[%emt 0:01:33]} 15. Re2 {[%emt 0:08:50]} Nd7 {[%emt 0:00:37]} 16. e6 {[%emt 0:06:03]} Nf6 {[%emt 0:00:49]} 17. exf7+ {[%emt 0:00:06]} Kxf7 {[%emt 0:00:02]} 18. Rxe8 {[%emt 0:00:32]} Qxe8 {[%emt 0:00:06]} 19. Na2 {[%emt 0:00:29]} Nxa2 {[%emt 0:10:34]} 20. Rxa2 {[%emt 0:00:09]} Bd7 {[%emt 0:00:02]} 21. Ra1 {[%emt 0:04:07]} Qc8 {[%emt 0:01:59]} 22. Kh2 {[%emt 0:02:05]} Qc7 {[%emt 0:01:36]} 23. Qf3 {[%emt 0:00:29]} Kg8 {[%emt 0:00:39]} 24. Re1 {[%emt 0:03:49]} Ne4 {[%emt 0:03:07]} 25. Qh5 {[%emt 0:09:27]} Nxf2 {[%emt 0:17:33]} 26. Nb5 {[%emt 0:01:38]} Qd8 {[%emt 0:04:11]} 27. Bxd5+ {[%emt 0:02:15]} Kh8 {[%emt 0:00:42]} 28. Bf7 {[%emt 0:06:58]} cxb5 {[%emt 0:05:38]} 29. Qxc5 {[%emt 0:02:09]} Nxh3 {[%emt 0:00:17]} 30. Qd4 {[%emt 0:01:01]} 1-0

[Event "Philip Hogarty Memorial IM 2019"]
[Site "Stillorgan"]
[Date "2019.01.06"]
[Round "8"]
[White "De Verdier, Michael"]
[Black "Melaugh, Shane"]
[Result "1-0"]
[ECO "C01"]
[WhiteElo "2277"]
[BlackElo "2169"]
[Annotator "NA"]
[PlyCount "75"]
[EventDate "2019.01.02"]
[EventType "tourn"]
[EventCountry "IRL"]
[SourceTitle "playchess.com"]
[Source "ChessBase"]
[SourceQuality "1"]
[TimeControl "5400+30"]

1. d4 {[%emt 0:00:00]} e6 {[%emt 0:10:41]} 2. e4 {[%emt 0:00:01]} d5 {[%emt 0:00:29]} 3. exd5 {[%emt 0:00:08]} exd5 {[%emt 0:00:05]} 4. Nf3 {[%emt 0:00:08]} Bd6 {[%emt 0:00:31]} 5. c4 {[%emt 0:00:15]} c6 {[%emt 0:00:31]} 6. Nc3 {[%emt 0:02:10]} Ne7 {[%emt 0:00:54]} 7. Bd3 {[%emt 0:04:37]} Bg4 {[%emt 0:07:33]} 8. O-O {[%emt 0:02:44]} h6 {[%emt 0:03:27]} 9. cxd5 {[%emt 0:07:27]} cxd5 {[%emt 0:00:21]} 10. h3 {[%emt 0:05:29]} Be6 {[%emt 0:02:09]} 11. Nb5 {[%emt 0:17:31]} O-O {[%emt 0:01:16]} 12. Nxd6 {[%emt 0:01:43]} Qxd6 {[%emt 0:00:06]} 13. Re1 {[%emt 0:01:00]} Nbc6 {[%emt 0:00:49]} 14. a3 {[%emt 0:03:05]} a6 {[%emt 0:03:01]} 15. Bd2 {[%emt 0:03:52]} Rfc8 {[%emt 0:07:11]} 16. Bc3 {[%emt 0:02:04]} b5 {[%emt 0:01:54]} 17. Qd2 {[%emt 0:04:21]} Bf5 {[%emt 0:06:23]} 18. Bf1 {[%emt 0:01:12]} Be4 {[%emt 0:05:15]} 19. Ne5 {[%emt 0:01:10]} f6 {[%emt 0:10:45]} 20. Nd3 {[%emt 0:01:09]} Re8 {[%emt 0:08:01]} 21. Nc5 {[%emt 0:01:35]} Ng6 {[%emt 0:01:06]} 22. a4 {[%emt 0:05:57]} bxa4 {[%emt 0:10:40]} 23. Rxa4 {[%emt 0:00:21]} a5 {[%emt 0:01:05]} 24. Bxa5 {[%emt 0:03:02]} Reb8 {[%emt 0:04:05]} 25. Bc3 {[%emt 0:02:27]} Rxa4 {[%emt 0:00:26]} 26. Nxa4 {[%emt 0:00:01]} Nge7 {[%emt 0:01:35]} 27. Nc5 {[%emt 0:01:14]} Bf5 {[%emt 0:00:01]} 28. Ra1 {[%emt 0:02:32]} Nc8 {[%emt 0:00:43]} 29. b4 {[%emt 0:03:12]} N8a7 {[%emt 0:00:49]} 30. Qe3 {[%emt 0:02:35]} Nb5 {[%emt 0:01:28]} 31. Bxb5 {[%emt 0:01:23]} Rxb5 {[%emt 0:00:05]} 32. Qe8+ {[%emt 0:00:58]} Kh7 {[%emt 0:00:06]} 33. Ra6 {[%emt 0:00:20]} Qf4 {[%emt 0:03:50]} 34. Rxc6 {[%emt 0:01:17]} Rxc5 {[%emt 0:00:21]} 35. Rxc5 {[%emt 0:00:40]} Be4 {[%emt 0:00:14]} 36. Qb5 {[%emt 0:02:11]} Bxg2 {[%emt 0:01:59]} 37. Kxg2 {[%emt 0:00:20]} Qe4+ {[%emt 0:00:23]} 38. Kg1 {[%emt 0:00:15]} 1-0

[Event "Philip Hogarty Memorial IM 2019"]
[Site "Stillorgan"]
[Date "2019.01.06"]
[Round "8"]
[White "Delaney, Killian"]
[Black "Li, Henry"]
[Result "1/2-1/2"]
[ECO "C83"]
[WhiteElo "2201"]
[BlackElo "2193"]
[Annotator "NA"]
[PlyCount "48"]
[EventDate "2019.01.02"]
[EventType "tourn"]
[EventCountry "IRL"]
[SourceTitle "playchess.com"]
[Source "ChessBase"]
[SourceQuality "1"]
[TimeControl "5400+30"]

1. e4 {[%emt 0:00:00]} e5 {[%emt 0:00:07]} 2. Nf3 {[%emt 0:00:00]} Nc6 {[%emt 0:00:09]} 3. Bb5 {[%emt 0:00:00]} a6 {[%emt 0:00:08]} 4. Ba4 {[%emt 0:00:01]} Nf6 {[%emt 0:00:14]} 5. O-O {[%emt 0:00:15]} Nxe4 {[%emt 0:00:20]} 6. d4 {[%emt 0:00:15]} b5 {[%emt 0:00:15]} 7. Bb3 {[%emt 0:00:06]} d5 {[%emt 0:00:09]} 8. dxe5 {[%emt 0:00:31]} Be6 {[%emt 0:00:19]} 9. Nbd2 {[%emt 0:00:15]} Nc5 {[%emt 0:00:40]} 10. c3 {[%emt 0:02:54]} Be7 {[%emt 0:00:18]} 11. Bc2 {[%emt 0:01:43]} d4 {[%emt 0:00:45]} 12. Nb3 {[%emt 0:00:49]} d3 {[%emt 0:00:31]} 13. Nxc5 {[%emt 0:01:35]} dxc2 {[%emt 0:00:22]} 14. Qxd8+ {[%emt 0:00:11]} Rxd8 {[%emt 0:00:10]} 15. Nxe6 {[%emt 0:00:21]} fxe6 {[%emt 0:00:08]} 16. Be3 {[%emt 0:01:31]} Rd5 {[%emt 0:03:39]} 17. Rac1 {[%emt 0:01:11]} Nxe5 {[%emt 0:01:22]} 18. Nxe5 {[%emt 0:00:16]} Rxe5 {[%emt 0:00:06]} 19. Rxc2 {[%emt 0:01:14]} Kf7 {[%emt 0:00:22]} 20. c4 {[%emt 0:00:22]} b4 {[%emt 0:00:27]} 21. Rd1 {[%emt 0:00:18]} Rd8 {[%emt 0:00:20]} 22. Rxd8 {[%emt 0:00:44]} Bxd8 {[%emt 0:00:08]} 23. Kf1 {[%emt 0:00:29]} Bg5 {[%emt 0:05:57]} 24. Ba7 {[%emt 0:02:33]} Be7 {[%emt 0:07:26]} 1/2-1/2

[Event "Philip Hogarty Memorial IM 2019"]
[Site "Stillorgan"]
[Date "2019.01.06"]
[Round "8"]
[White "O`Gorman, Tom"]
[Black "Greet, Andrew N"]
[Result "0-1"]
[ECO "C07"]
[WhiteElo "2153"]
[BlackElo "2420"]
[Annotator "NA RC"]
[PlyCount "74"]
[EventDate "2019.01.02"]
[EventType "tourn"]
[EventCountry "IRL"]
[SourceTitle "playchess.com"]
[Source "ChessBase"]
[SourceQuality "1"]
[TimeControl "5400+30"]

1. e4 {[%emt 0:00:00]} e6 {[%emt 0:00:33]} 2. d4 {[%emt 0:00:00]} d5 {[%emt 0:00:05]} 3. Nd2 {[%emt 0:00:00]} c5 {[%emt 0:00:07]} 4. exd5 {[%emt 0:00:04]} Qxd5 {[%emt 0:00:06]} 5. Ngf3 {[%emt 0:00:09]} cxd4 {[%emt 0:00:07]} 6. Bc4 {[%emt 0:00:07]} Qd6 {[%emt 0:00:06]} 7. O-O {[%emt 0:00:07]} Nf6 {[%emt 0:00:03]} 8. Nb3 {[%emt 0:00:08]} Nc6 {[%emt 0:00:05]} 9. Nbxd4 {[%emt 0:00:07]} Nxd4 {[%emt 0:00:06]} 10. Nxd4 {[%emt 0:00:08]} Be7 {[%emt 0:00:08]} 11. b3 {[%emt 0:00:08]} O-O {[%emt 0:00:21]} 12. Bb2 {[%emt 0:00:06]} Qf4 {[%emt 0:00:33]} 13. Qe2 {[%emt 0:00:24]} Bc5 {[%emt 0:00:38]} 14. Nf3 {[%emt 0:01:48]} b6 {[%emt 0:10:11]} 15. Ba6 {[%emt 0:07:21]} Qe4 {[%emt 0:05:28]} 16. Qxe4 {[%emt 0:07:26]} Nxe4 {[%emt 0:00:06]} 17. Bxc8 {[%emt 0:00:09]} Raxc8 {[%emt 0:00:16]} 18. Rae1 {[%emt 0:15:28]} Bxf2+ {[%emt 0:02:35]} 19. Rxf2 {[%emt 0:00:54]} Nxf2 {[%emt 0:00:04]} 20. Kxf2 {[%emt 0:00:08]} Rxc2+ {[%emt 0:00:07]} 21. Re2 {[%emt 0:00:07]} Rfc8 {[%emt 0:00:26]} 22. Ne1 {[%emt 0:06:28]} Rxe2+ {[%emt 0:00:24]} 23. Kxe2 {[%emt 0:00:02]} f6 {[%emt 0:00:12]} 24. Kd3 {[%emt 0:03:10]} Kf7 {[%emt 0:00:28]} 25. Nc2 {[%emt 0:01:39]} e5 {[%emt 0:00:16]} 26. a4 {[%emt 0:03:08]} Ke6 {[%emt 0:00:25]} 27. g4 {[%emt 0:03:15]} Rd8+ {[%emt 0:01:53]} 28. Ke2 {[%emt 0:01:15]} h5 {[%emt 0:00:49]} 29. h3 {[%emt 0:00:13]} hxg4 {[%emt 0:00:14]} 30. hxg4 {[%emt 0:00:01]} Rh8 {[%emt 0:00:10]} 31. Bc1 {[%emt 0:01:28]} g6 {[%emt 0:03:54]} 32. Na3 {[%emt 0:50:32]} Rh4 {[%emt 0:03:42]} 33. g5 {[%emt 0:00:00]} fxg5 {[%emt 0:03:07]} 34. Nc4 {[%emt 0:00:00]} g4 {[%emt 0:01:35]} 35. Ne3 {[%emt 0:00:00]} Rh2+ {[%emt 0:00:47]} 36. Ke1 {[%emt 0:00:00]} g3 {[%emt 0:02:45]} 37. Ba3 {[%emt 0:00:00]} Ra2 {[%emt 0:00:44]} 0-1

[Event "Philip Hogarty Memorial IM 2019"]
[Site "Stillorgan"]
[Date "2019.01.06"]
[Round "9"]
[White "Wall, Gavin"]
[Black "De Verdier, Michael"]
[Result "1/2-1/2"]
[ECO "B40"]
[WhiteElo "2330"]
[BlackElo "2277"]
[Annotator "NA"]
[PlyCount "121"]
[EventDate "2019.01.02"]
[EventType "tourn"]
[EventCountry "IRL"]
[SourceTitle "playchess.com"]
[Source "ChessBase"]
[SourceQuality "1"]
[TimeControl "5400+30"]

1. e4 {[%emt 0:00:15]} c5 {[%emt 0:00:00]} 2. Nf3 {[%emt 0:00:07]} e6 {[%emt 0:00:00]} 3. b3 {[%emt 0:00:46]} a6 {[%emt 0:00:50]} 4. Bb2 {[%emt 0:00:06]} Nc6 {[%emt 0:00:09]} 5. g3 {[%emt 0:03:43] LiveBook: 131 Games} d6 {[%emt 0:03:34]} 6. Bg2 {[%emt 0:00:55]} Nf6 {[%emt 0:00:07]} 7. Qe2 {[%emt 0:00:13]} Be7 {[%emt 0:01:07] B40: Sicilian: 2...e6, Unusual lines} 8. O-O {[%emt 0:00:51]} O-O {[%emt 0:00:20]} 9. c3 {[%emt 0:06:40]} d5 {[%emt 0:03:39]} 10. e5 {[%emt 0:00:46]} Nd7 {[%emt 0:00:30]} 11. d4 {[%emt 0:01:08]} cxd4 {[%emt 0:04:02]} 12. cxd4 {[%emt 0:01:18]} a5 $146 {[%emt 0:07:16]} ({Predecessor:} 12... b5 13. Nc3 Nb6 14. Rac1 Bd7 15. Qd2 {1-0 (51) Balashov,Y (2555)-Tunik,G (2470) Maikop 1998}) 13. Nc3 {[%emt 0:11:17]} b6 {[%emt 0:01:43]} 14. Rfc1 {[%emt 0:00:03]} Ba6 {[%emt 0:01:33]} 15. Qe3 {[%emt 0:03:08]} Rc8 {[%emt 0:02:51]} 16. Ne1 {[%emt 0:04:42]} Ndxe5 {[%emt 0:08:13]} 17. dxe5 {[%emt 0:00:19]} d4 {[%emt 0:00:08]} 18. Qe4 {[%emt 0:03:32]} dxc3 {[%emt 0:00:36]} 19. Rxc3 {[%emt 0:00:31]} Nb4 {[%emt 0:02:58]} 20. Rxc8 {[%emt 0:01:30]} Qxc8 {[%emt 0:00:28]} 21. Rc1 {[%emt 0:09:27]} Qd7 {[%emt 0:01:48]} 22. Qd4 $17 {[%emt 0:13:46]} Nd5 {[%emt 0:15:58]} 23. Nd3 {[%emt 0:06:53]} Rd8 {[%emt 0:02:37]} 24. Bf1 {[%emt 0:13:06]} Qb7 {[%emt 0:04:15]} 25. Qe4 {[%emt 0:02:54]} g6 {[%emt 0:01:56]} 26. h4 {[%emt 0:05:52]} Qb8 {[%emt 0:05:49]} 27. h5 {[%emt 0:00:42]} Bb7 {[%emt 0:03:25]} 28. Qg4 {[%emt 0:00:46]} Bf8 {[%emt 0:01:50]} 29. Rc4 {[%emt 0:04:56]} Ba6 {[%emt 0:03:24]} 30. Rd4 {[%emt 0:00:19]} Qc7 {[%emt 0:02:54]} 31. hxg6 {[%emt 0:01:23]} hxg6 {[%emt 0:00:01]} 32. Nf4 {[%emt 0:02:09]} Nxf4 {[%emt 0:02:36]} 33. Bxa6 {[%emt 0:00:14]} Rxd4 {[%emt 0:02:44]} 34. Bxd4 {[%emt 0:00:01]} Nd5 {[%emt 0:03:23]} 35. Bc4 {[%emt 0:00:19]} Qc6 {[%emt 0:01:06]} 36. a4 {[%emt 0:00:28]} Bc5 {[%emt 0:01:07]} 37. Bb2 {[%emt 0:00:45]} Ne7 {[%emt 0:01:37]} 38. Qd1 {[%emt 0:01:22]} Nf5 {[%emt 0:01:13]} 39. g4 {[%emt 0:00:29]} Ne7 {[%emt 0:02:57]} 40. Qd3 {[%emt 0:00:29]} g5 {[%emt 0:01:04]} 41. Bc1 {[%emt 0:00:34]} Ng6 {[%emt 0:01:36]} 42. Bb5 {[%emt 0:01:12]} Bxf2+ {[%emt 0:00:53]} 43. Kxf2 {[%emt 0:00:11]} Qxc1 {[%emt 0:00:04]} 44. Qd8+ {[%emt 0:00:14]} Kh7 {[%emt 0:01:00]} 45. Qxb6 {[%emt 0:00:04]} Qd2+ {[%emt 0:00:27]} 46. Kf1 {[%emt 0:00:50]} Nxe5 {[%emt 0:01:00]} 47. Qf2 {[%emt 0:01:35]} Qd1+ {[%emt 0:01:53]} 48. Qe1 {[%emt 0:00:02]} Qd4 {[%emt 0:01:32]} 49. Qxa5 {[%emt 0:00:38]} Nxg4 {[%emt 0:00:40]} 50. Ke2 {[%emt 0:00:03]} Qe3+ {[%emt 0:00:20]} 51. Kd1 {[%emt 0:00:09]} Qxb3+ {[%emt 0:00:17]} 52. Kc1 {[%emt 0:00:02]} Ne3 {[%emt 0:00:52]} 53. Qd2 {[%emt 0:00:14]} Qa3+ {[%emt 0:02:08]} 54. Kb1 {[%emt 0:00:01]} Qc5 {[%emt 0:00:49]} 55. Bd3+ {[%emt 0:01:11]} f5 {[%emt 0:00:50]} 56. a5 {[%emt 0:00:02]} Nd5 {[%emt 0:00:45]} 57. Qxg5 {[%emt 0:00:21]} Nc3+ {[%emt 0:00:25]} 58. Kb2 {[%emt 0:00:19]} Qxa5 {[%emt 0:00:22]} 59. Qe7+ {[%emt 0:00:13]} Kg6 {[%emt 0:00:51]} 60. Qxe6+ {[%emt 0:00:04]} Kg5 {[%emt 0:00:02]} 61. Qxf5+ {[%emt 0:00:15]} 1/2-1/2

[Event "Philip Hogarty Memorial IM 2019"]
[Site "Stillorgan"]
[Date "2019.01.06"]
[Round "9"]
[White "Li, Henry"]
[Black "Sodoma, Jan"]
[Result "1/2-1/2"]
[ECO "C92"]
[WhiteElo "2193"]
[BlackElo "2324"]
[Annotator "NA"]
[PlyCount "41"]
[EventDate "2019.01.02"]
[EventType "tourn"]
[EventCountry "IRL"]
[SourceTitle "playchess.com"]
[Source "ChessBase"]
[SourceQuality "1"]
[TimeControl "5400+30"]

1. e4 {[%emt 0:00:00]} e5 {[%emt 0:00:00]} 2. Nf3 {[%emt 0:00:00]} Nc6 {[%emt 0:00:00]} 3. Bb5 {[%emt 0:00:00]} a6 {[%emt 0:00:00]} 4. Ba4 {[%emt 0:00:00]} Nf6 {[%emt 0:00:00]} 5. O-O {[%emt 0:00:00]} Be7 {[%emt 0:00:00]} 6. Re1 {[%emt 0:00:02]} b5 {[%emt 0:00:05]} 7. Bb3 {[%emt 0:00:04]} d6 {[%emt 0:00:31]} 8. c3 {[%emt 0:00:07]} O-O {[%emt 0:00:07]} 9. h3 {[%emt 0:00:07]} Bb7 {[%emt 0:03:47]} 10. d4 {[%emt 0:02:25]} Re8 {[%emt 0:00:06] LiveBook: 6410 Games} 11. Ng5 {[%emt 0:00:25]} Rf8 {[%emt 0:00:07]} 12. Nf3 {[%emt 0:00:06]} Re8 $14 {[%emt 0:00:07]} 13. Ng5 {[%emt 0:02:11]} Rf8 {[%emt 0:00:08]} 14. Nf3 {[%emt 0:00:08]} Re8 {[%emt 1:32:02]} 15. Nbd2 {[%emt 1:31:55]} Bf8 16. a4 {[%emt 0:00:30]} h6 17. Bc2 exd4 18. cxd4 Nb4 {[%emt 0:02:00]} 19. Bb1 c5 20. d5 {[%emt 0:02:00]} Nd7 21. Ra3 {[%emt 0:00:30]} 1/2-1/2

[Event "Philip Hogarty Memorial IM 2019"]
[Site "Stillorgan"]
[Date "2019.01.06"]
[Round "9"]
[White "Melaugh, Shane"]
[Black "O`Gorman, Tom"]
[Result "0-1"]
[ECO "E73"]
[WhiteElo "2169"]
[BlackElo "2153"]
[Annotator "NA"]
[PlyCount "86"]
[EventDate "2019.01.02"]
[EventType "tourn"]
[EventCountry "IRL"]
[SourceTitle "playchess.com"]
[Source "ChessBase"]
[SourceQuality "1"]
[TimeControl "5400+30"]

1. c4 {[%emt 0:00:00]} Nf6 {[%emt 0:00:00]} 2. Nc3 {[%emt 0:00:00]} g6 {[%emt 0:00:00]} 3. e4 {[%emt 0:00:00]} d6 {[%emt 0:00:00]} 4. d4 {[%emt 0:00:00]} Bg7 {[%emt 0:00:00]} 5. Be2 {[%emt 0:00:02]} O-O {[%emt 0:00:02]} 6. Be3 {[%emt 0:00:06]} c5 {[%emt 0:00:06]} 7. e5 {[%emt 0:00:36] E73: King's Indian: Averbakh Variation without 6...c5} (7. d5 e6 8. Nf3 exd5 9. cxd5 Re8 10. Nd2 c4 11. O-O Na6 12. Bf3 b6 13. Re1 Nc5 14. Bxc5 bxc5 15. e5 Rxe5 16. Rxe5 dxe5 17. Nxc4 {½-½ (23) Howell,D (2687)-Jones,G (2670) Hull 2018}) 7... Ne8 {[%emt 0:00:08]} 8. exd6 {[%emt 0:00:25]} Nxd6 {[%emt 0:00:17]} 9. dxc5 {[%emt 0:02:57]} Nf5 {[%emt 0:00:08]} 10. Qxd8 {[%emt 0:00:07]} Rxd8 {[%emt 0:00:06]} 11. Bd2 $146 {[%emt 0:02:39]} ({Predecessor:} 11. Nd5 Na6 12. O-O-O Be6 13. Bf3 Rac8 14. Bg5 Bxd5 15. Bxd5 {0-1 (47) Kalavannan,K (2365)-Quirhuayo Chumbe,G (2220) Porto Carras 2018}) 11... Na6 {[%emt 0:04:36]} 12. Nf3 {[%emt 0:02:18]} Nxc5 {[%emt 0:01:15]} 13. O-O {[%emt 0:00:34]} b6 {[%emt 0:01:01]} 14. Rad1 {[%emt 0:00:31]} Bb7 {[%emt 0:01:28]} 15. Bf4 {[%emt 0:01:17]} Nd4 {[%emt 0:07:38]} 16. Nxd4 {[%emt 0:00:57]} Bxd4 {[%emt 0:00:09]} 17. Be3 {[%emt 0:06:57]} Bxc3 {[%emt 0:10:13]} 18. bxc3 {[%emt 0:00:19]} Na4 {[%emt 0:01:52]} 19. Bd4 {[%emt 0:01:47]} Rac8 {[%emt 0:10:36]} 20. Rb1 {[%emt 0:05:43]} Nc5 {[%emt 0:09:33]} 21. Bxc5 {[%emt 0:06:43]} Rxc5 {[%emt 0:00:38]} 22. Rfd1 {[%emt 0:00:15]} Rxd1+ {[%emt 0:04:31]} 23. Rxd1 {[%emt 0:00:06]} Rc7 {[%emt 0:01:00]} 24. f3 {[%emt 0:01:05]} Ba6 {[%emt 0:01:43]} 25. Rd4 {[%emt 0:01:35]} e5 $17 {[%emt 0:04:35]} 26. Re4 {[%emt 0:00:03]} f6 {[%emt 0:00:06]} 27. Kf2 {[%emt 0:00:53]} Rc5 {[%emt 0:01:02]} 28. f4 {[%emt 0:00:30]} Kf7 {[%emt 0:00:22]} 29. fxe5 {[%emt 0:00:06]} fxe5 {[%emt 0:00:06]} 30. Ke3 {[%emt 0:00:20]} Kf6 {[%emt 0:00:41]} 31. g3 {[%emt 0:02:52]} Bc8 {[%emt 0:02:03]} 32. Bd1 {[%emt 0:01:16]} Bf5 {[%emt 0:02:17]} 33. Rh4 {[%emt 0:00:11]} h5 {[%emt 0:00:06]} 34. a4 {[%emt 0:00:29]} Be6 {[%emt 0:01:19]} 35. Be2 {[%emt 0:01:35]} Bd7 {[%emt 0:00:31]} 36. Bd1 {[%emt 0:00:10]} Bc6 {[%emt 0:00:08]} 37. Bc2 {[%emt 0:01:16]} Ra5 {[%emt 0:02:45]} 38. Kd2 {[%emt 0:04:56]} Bxa4 {[%emt 0:01:20]} 39. c5 {[%emt 0:00:26]} Bxc2 {[%emt 0:00:29]} 40. cxb6 {[%emt 0:00:07]} Ra2 {[%emt 0:00:17]} 41. bxa7 {[%emt 0:01:16]} Bf5+ {[%emt 0:00:06]} 42. Ke3 {[%emt 0:00:06]} Bg4 {[%emt 0:00:04]} 43. h3 {[%emt 0:00:22]} g5 {[%emt 0:00:05]} 0-1